bitfinex/quotes_BTCUSD_20251124
["timestamp","ask_amount","ask_price","bid_price","bid_amount"]
[1763948736636,0.39133658,86658.0,86650.0,0.00999999]
[1763948736843,0.02149833,86657.0,86653.0,0.00905421]
[1763948737300,0.37244833,86657.0,86652.0,0.00905421]
[1763948737496,0.02149833,86656.0,86652.0,0.00905421]
[1763948737694,0.35095,86657.0,86652.0,0.00905421]
[1763948737695,0.02149833,86655.0,86652.0,0.00905421]
[1763948737895,0.323,86657.0,86652.0,0.00905421]
[1763948737896,0.02149833,86654.0,86652.0,0.00905421]
[1763948738128,0.02149833,86653.0,86652.0,0.00905421]
[1763948738517,0.32311825,86658.0,86652.0,0.00905421]
[1763948738734,0.02147555,86657.0,86652.0,0.06227807]
[1763948738875,0.32311825,86658.0,86657.0,0.00905421]
[1763948739076,0.34459291,86658.0,86657.0,0.00905421]
[1763948739524,0.02159291,86658.0,86657.0,0.00905421]
[1763948739883,0.04036291,86658.0,86656.0,0.00905421]
[1763948740090,0.02147466,86657.0,86656.0,0.00905421]
[1763948740288,0.04024466,86657.0,86656.0,0.00905421]
[1763948740584,0.06819466,86657.0,86650.0,0.01499998]
[1763948740765,0.02147466,86656.0,86652.0,0.001]
[1763948740921,0.04672,86657.0,86650.0,0.02405419]
[1763948740922,0.02147466,86655.0,86650.0,0.02405419]
[1763948741103,0.01877,86651.0,86649.0,0.00905421]
[1763948741303,0.11811186,86654.0,86649.0,0.00905421]
[1763948741505,0.02795,86653.0,86649.0,0.00905421]
[1763948741713,0.01877,86650.0,86648.0,0.00025359]
[1763948741967,0.35095,86653.0,86648.0,0.00025359]
[1763948741968,0.01877,86649.0,86648.0,0.00025359]
[1763948742430,0.323,86653.0,86651.0,0.00905421]
[1763948742602,0.02146327,86652.0,86651.0,0.00905421]
[1763948743335,0.01877,86652.0,86651.0,0.00905421]
[1763948743565,0.323,86653.0,86651.0,0.00905421]
[1763948743692,0.00011825,86658.0,86651.0,0.00905421]
[1763948743900,0.02146391,86657.0,86656.0,0.00905421]
[1763948744294,0.00011825,86658.0,86657.0,0.00905421]
[1763948744517,0.00011825,86658.0,86650.0,0.01499998]
[1763948744518,0.00011825,86658.0,86653.0,0.00905421]
[1763948745045,0.03135,86654.0,86652.0,0.00905421]
[1763948745451,0.04681,86653.0,86648.0,0.00025359]
[1763948745614,0.323,86655.0,86652.0,0.00905421]
[1763948745829,0.021468,86654.0,86652.0,0.00905421]
[1763948746036,0.01341,86657.0,86650.0,0.01499998]
[1763948746238,0.01341,86657.0,86656.0,0.00905421]
[1763948746460,0.02158516,86658.0,86657.0,0.00905421]
[1763948747489,0.03952516,86658.0,86657.0,0.00905421]
[1763948747696,0.06839516,86658.0,86654.0,0.00905421]
[1763948747891,0.06839516,86658.0,86650.0,0.01499998]
[1763948747892,0.04692825,86658.0,86657.0,0.001]
[1763948748090,0.06840661,86658.0,86657.0,0.001]
[1763948748249,0.03953661,86658.0,86657.0,0.001]
[1763948748655,0.06840661,86658.0,86657.0,0.001]
[1763948749696,0.323,86654.0,86648.0,0.0093078]
[1763948749895,0.01794,86651.0,86650.0,0.00999999]
[1763948750015,0.323,86652.0,86650.0,0.00999999]
[1763948750418,0.323,86652.0,86651.0,0.00905421]
[1763948751031,0.323,86657.0,86650.0,0.01099999]
[1763948751244,0.45905186,86651.0,86650.0,0.01099999]
[1763948752120,0.48792186,86651.0,86650.0,0.01099999]
[1763948752363,0.34094,86651.0,86650.0,0.01099999]
[1763948752565,0.34094,86651.0,86650.0,0.001]
[1763948753347,0.323,86650.0,86648.0,0.0093078]
[1763948754203,0.45905186,86649.0,86648.0,0.0093078]
[1763948754651,0.45905186,86649.0,86648.0,0.00915251]
[1763948755310,0.323,86649.0,86648.0,0.00915251]
[1763948755655,0.00011825,86658.0,86650.0,0.014749]
[1763948755834,0.00011825,86658.0,86657.0,0.00905421]
[1763948757108,0.00011825,86658.0,86657.0,0.01005421]
[1763948757309,0.00011825,86658.0,86657.0,0.00905421]
[1763948757519,0.00011825,86658.0,86657.0,0.01005421]
[1763948758557,0.00011825,86658.0,86657.0,0.01105421]
[1763948758970,0.00011825,86658.0,86657.0,0.02098323]
[1763948759778,0.323,86699.0,86690.0,0.00960075]
[1763948759934,0.323,86695.0,86693.0,0.00905421]
[1763948760140,0.02155301,86694.0,86693.0,0.00905421]
[1763948760350,0.01711987,86695.0,86693.0,0.00905421]
[1763948760555,0.00011838,86699.0,86694.0,0.00905421]
[1763948760924,0.00011838,86699.0,86698.0,0.00905421]
[1763948761532,0.01822212,86699.0,86698.0,0.00905421]
[1763948762368,0.01822212,86699.0,86698.0,0.01005421]
[1763948763040,0.0004,86710.0,86698.0,0.01005421]
[1763948763267,2.0,86728.0,86725.0,0.00905421]
[1763948763451,2.0,86733.0,86732.0,0.00905421]
[1763948763671,2.00011834,86733.0,86732.0,0.00905421]
[1763948763872,2.00037155,86733.0,86732.0,0.00905421]
[1763948764403,2.32337155,86733.0,86732.0,0.00905421]
[1763948764904,0.01153016,86729.0,86720.0,0.02365495]
[1763948765087,0.03114,86721.0,86714.0,0.00905421]
[1763948765285,0.03114,86721.0,86710.0,0.01460074]
[1763948765509,0.33453163,86718.0,86710.0,0.01460074]
[1763948765710,0.323,86718.0,86710.0,0.01460074]
[1763948766120,0.323,86718.0,86711.0,0.00905421]
[1763948766292,0.01786,86711.0,86710.0,0.00499999]
[1763948766491,0.01786,86711.0,86701.0,0.00905421]
[1763948766692,0.323,86705.0,86701.0,0.00905421]
[1763948766902,0.03114,86702.0,86695.0,0.00905421]
[1763948767129,0.03114,86702.0,86690.0,0.00960075]
[1763948767130,0.05640606,86701.0,86691.0,0.01061617]
[1763948767326,0.323,86700.0,86691.0,0.01061617]
[1763948767856,0.45897186,86692.0,86691.0,0.00156196]
[1763948768261,0.34086,86692.0,86691.0,0.00156196]
[1763948768467,0.49564466,86692.0,86691.0,0.00156196]
[1763948768657,2.61375652,86692.0,86691.0,0.00156196]
[1763948769078,2.61375652,86692.0,86649.0,0.00698]
[1763948769079,0.01153788,86671.0,86666.0,0.00905421]
[1763948769280,0.01328,86671.0,86670.0,0.01460074]
[1763948769492,0.33453815,86669.0,86666.0,0.00039508]
[1763948769691,0.01786,86667.0,86666.0,0.00039508]
[1763948770311,0.323,86669.0,86666.0,0.00944929]
[1763948771006,0.01328,86671.0,86666.0,0.00944929]
[1763948771214,0.323,86675.0,86670.0,0.01460074]
[1763948771442,0.323,86675.0,86674.0,0.00905421]
[1763948771796,0.323,86675.0,86674.0,0.00959281]
[1763948772005,0.01328,86688.0,86680.0,0.01460074]
[1763948772344,2.323,86686.0,86685.0,0.00905421]
[1763948772479,0.323,86686.0,86685.0,0.00905421]
[1763948773270,0.01786,86686.0,86684.0,0.00905421]
[1763948773779,0.01328,86688.0,86684.0,0.00905421]
[1763948773932,0.01328,86688.0,86684.0,0.00878811]
[1763948774131,0.01328,86688.0,86684.0,0.009]
[1763948775782,0.323,86689.0,86684.0,0.009]
[1763948775988,2.0,86699.0,86690.0,0.00499999]
[1763948776190,0.323,86698.0,86693.0,0.00978811]
[1763948776440,2.0,86701.0,86690.0,0.01460074]
[1763948776661,2.0,86705.0,86700.0,0.01460074]
[1763948776815,0.323,86702.0,86701.0,0.00978811]
[1763948777574,0.01786,86702.0,86701.0,0.00978811]
[1763948777783,0.04652,86702.0,86693.0,0.00978811]
[1763948777985,0.02939389,86701.0,86693.0,0.00990649]
[1763948778188,0.02939389,86701.0,86693.0,0.00011838]
[1763948778189,0.01786,86694.0,86693.0,0.00011838]
[1763948778598,2.04652,86694.0,86693.0,0.00011838]
[1763948779225,2.06795902,86694.0,86693.0,0.00011838]
[1763948779397,2.39095902,86694.0,86693.0,0.00011838]
[1763948780416,2.39195902,86694.0,86693.0,0.00011838]
[1763948781277,2.37052,86694.0,86693.0,0.00011838]
[1763948782295,2.39196689,86694.0,86693.0,0.00011838]
[1763948782458,2.39197137,86694.0,86693.0,0.00011838]
[1763948782656,2.39097137,86694.0,86693.0,0.00011838]
[1763948783152,2.3909741,86694.0,86693.0,0.00011838]
[1763948783576,2.36952,86694.0,86693.0,0.00011838]
[1763948784597,0.323,86694.0,86693.0,0.00011838]
[1763948784813,0.36952,86694.0,86693.0,0.00011838]
[1763948785130,0.34086,86694.0,86693.0,0.00011838]
[1763948785555,0.323,86694.0,86693.0,0.00011838]
[1763948785726,0.323,86694.0,86693.0,0.00990649]
[1763948785926,0.11811186,86706.0,86700.0,0.01460074]
[1763948786124,2.0,86705.0,86704.0,0.00978811]
[1763948786736,2.323,86705.0,86704.0,0.00978811]
[1763948786930,0.323,86704.0,86700.0,0.00499999]
[1763948787130,0.323,86702.0,86701.0,0.00978811]
[1763948787750,0.323,86702.0,86698.0,0.00978811]
[1763948788213,0.01328,86703.0,86698.0,0.00978811]
[1763948788648,0.04194,86703.0,86698.0,0.00978811]
[1763948788859,0.01328,86703.0,86698.0,0.00978811]
[1763948789288,0.01786,86699.0,86698.0,0.001]
[1763948789504,2.34086,86699.0,86698.0,0.001]
[1763948789951,2.36952,86699.0,86698.0,0.001]
[1763948790166,2.323,86698.0,86693.0,0.00011838]
[1763948790314,2.0,86697.0,86693.0,0.00011838]
[1763948790519,2.0,86698.0,86693.0,0.00011838]
[1763948791045,2.0,86702.0,86693.0,0.00011838]
[1763948791201,2.0,86702.0,86699.0,0.00978811]
[1763948791816,2.0,86705.0,86704.0,0.00978811]
[1763948792022,2.0,86710.0,86707.0,0.00978811]
[1763948792218,2.0,86710.0,86698.0,0.001]
[1763948792219,2.0,86716.0,86710.0,0.02323074]
[1763948792428,0.49382954,86720.0,86716.0,0.00978811]
[1763948792429,0.01328,86720.0,86716.0,0.00978811]
[1763948792627,0.48054954,86730.0,86722.0,0.00978811]
[1763948792628,2.0,86724.0,86722.0,0.00978811]
[1763948792829,0.01328,86728.0,86723.0,0.00978811]
[1763948793090,0.01328,86728.0,86724.0,0.00978811]
[1763948793548,0.02774,86724.0,86720.0,0.00499999]
[1763948793757,0.34215,86721.0,86720.0,0.00499999]
[1763948794360,0.34215,86721.0,86716.0,0.00978811]
[1763948794658,0.34215,86721.0,86720.0,0.00978811]
[1763948795311,0.01915,86721.0,86720.0,0.01078811]
[1763948795513,0.00156165,86725.0,86720.0,0.01078811]
[1763948795718,0.323,86723.0,86720.0,0.01078811]
[1763948796003,0.00156165,86725.0,86720.0,0.01078811]
[1763948796004,0.00156165,86725.0,86724.0,0.01841811]
[1763948796626,0.00156165,86725.0,86724.0,0.00978811]
[1763948798366,0.00156165,86725.0,86724.0,0.01178811]
[1763948799794,0.00156165,86725.0,86724.0,0.02041811]
[1763948801214,0.00156165,86725.0,86724.0,0.02904811]
[1763948803016,0.00156165,86725.0,86724.0,0.01178811]
[1763948803417,0.00156165,86725.0,86724.0,0.02041811]
[1763948805354,0.00156165,86725.0,86724.0,0.02774811]
[1763948805861,0.00156165,86725.0,86724.0,0.02041811]
[1763948806061,0.00156165,86725.0,86724.0,0.02774811]
[1763948806290,2.27833565,86725.0,86724.0,0.002]
[1763948806492,2.29979654,86725.0,86724.0,0.002]
[1763948806649,2.06918254,86725.0,86724.0,0.002]
[1763948806851,0.02302254,86725.0,86724.0,0.002]
[1763948807066,0.00156165,86725.0,86724.0,0.01078811]
[1763948807701,0.00156165,86725.0,86724.0,0.00978811]
[1763948807827,0.00156165,86725.0,86724.0,0.01711811]
[1763948808031,0.00156165,86725.0,86724.0,0.00978811]
[1763948808455,0.00156165,86725.0,86720.0,0.01460074]
[1763948808657,0.00156165,86725.0,86723.0,0.00978811]
[1763948809567,0.04616,86724.0,86710.0,0.00499999]
[1763948809766,0.323,86719.0,86717.0,0.00978811]
[1763948809989,0.04616,86724.0,86717.0,0.00978811]
[1763948810330,0.019,86718.0,86710.0,0.00960075]
[1763948810531,0.2496339,86718.0,86709.0,0.00978811]
[1763948810754,0.28832553,86718.0,86710.0,0.00960075]
[1763948810962,0.01153176,86717.0,86709.0,0.00978811]
[1763948811171,0.323,86715.0,86709.0,0.00978811]
[1763948811464,0.342,86710.0,86700.0,0.01460074]
[1763948811591,0.36029753,86711.0,86700.0,0.01471912]
[1763948811592,0.323,86705.0,86700.0,0.01471912]
[1763948811787,0.48054954,86714.0,86700.0,0.01471912]
[1763948812012,0.3487631,86711.0,86710.0,0.002]
[1763948812221,0.3487631,86711.0,86710.0,0.001]
[1763948812416,0.16427186,86711.0,86710.0,0.001]
[1763948813246,0.16427186,86711.0,86704.0,0.00978811]
[1763948813649,0.39492529,86711.0,86704.0,0.00978811]
[1763948813858,0.019,86705.0,86704.0,0.00978811]
[1763948814603,0.04616,86705.0,86700.0,0.00971913]
[1763948814772,0.01397,86701.0,86700.0,0.00011838]
[1763948814992,0.03297,86701.0,86700.0,0.00011838]
[1763948815188,0.06013,86701.0,86700.0,0.00011838]
[1763948815393,0.38313,86701.0,86700.0,0.00011838]
[1763948816801,0.06013,86701.0,86700.0,0.00011838]
[1763948818726,2.38313,86701.0,86700.0,0.00011838]
[1763948819456,0.323,86701.0,86700.0,0.00990649]
[1763948819768,0.342,86701.0,86700.0,0.00990649]
[1763948820401,0.342,86701.0,86700.0,0.00011838]
[1763948820750,0.323,86701.0,86700.0,0.00011838]
[1763948820874,0.323,86701.0,86700.0,0.00990649]
[1763948821896,0.323,86701.0,86700.0,0.01090649]
[1763948822094,0.36916,86701.0,86700.0,0.00111838]
[1763948822297,0.61380784,86701.0,86700.0,0.00111838]
[1763948822701,0.61380784,86701.0,86700.0,0.00211838]
[1763948822897,0.38313,86701.0,86700.0,0.00211838]
[1763948823101,0.35597,86701.0,86700.0,0.00211838]
[1763948823302,0.35597,86701.0,86700.0,0.00111838]
[1763948823515,0.38313,86701.0,86700.0,0.00011838]
[1763948823747,0.61380784,86701.0,86700.0,0.00011838]
[1763948824068,2.61380784,86701.0,86700.0,0.00011838]
[1763948824364,2.38313,86701.0,86700.0,0.00011838]
[1763948824567,2.61380784,86701.0,86700.0,0.00011838]
[1763948824990,2.63532178,86701.0,86700.0,0.00011838]
[1763948826338,2.67374101,86701.0,86700.0,0.00011838]
[1763948826952,2.67474101,86701.0,86700.0,0.00011838]
[1763948827163,2.23072308,86684.0,86670.0,0.01460074]
[1763948827369,2.28388529,86684.0,86670.0,0.01460074]
[1763948827539,2.63338529,86684.0,86670.0,0.00960075]
[1763948827986,2.63338529,86684.0,86670.0,0.01460074]
[1763948828415,2.63338529,86684.0,86670.0,0.00960075]
[1763948829020,2.63338529,86684.0,86660.0,0.00960075]
[1763948829233,2.67119016,86684.0,86660.0,0.00960075]
[1763948829441,2.67119016,86684.0,86670.0,0.00499999]
[1763948829846,2.67119016,86684.0,86670.0,0.01460074]
[1763948830148,2.67119016,86684.0,86670.0,0.00960075]
[1763948830288,2.67219016,86684.0,86670.0,0.00960075]
[1763948830721,2.75710825,86684.0,86670.0,0.01460074]
[1763948830868,2.71868902,86684.0,86670.0,0.01460074]
[1763948831652,2.73328976,86684.0,86670.0,0.01460074]
[1763948831782,2.73328976,86684.0,86670.0,0.00960075]
[1763948831986,2.73328976,86684.0,86645.0,0.00978811]
[1763948831987,0.01154054,86651.0,86645.0,0.00978811]
[1763948832186,0.01154028,86653.0,86640.0,0.00960075]
[1763948832187,0.03153,86646.0,86640.0,0.00960075]
[1763948832409,0.03153,86646.0,86640.0,0.01460074]
[1763948832644,0.01772,86641.0,86640.0,0.01460074]
[1763948832848,0.01381,86646.0,86640.0,0.00960075]
[1763948833061,0.48054954,86650.0,86640.0,0.00960075]
[1763948833260,0.48054954,86650.0,86649.0,0.00978811]
[1763948833455,0.01381,86652.0,86651.0,0.00978811]
[1763948834295,0.05803,86652.0,86640.0,0.01499582]
[1763948834492,0.01772,86641.0,86640.0,0.02478393]
[1763948834942,0.01739696,86641.0,86640.0,0.01499582]
[1763948835158,0.03511696,86641.0,86640.0,0.01978394]
[1763948835290,0.04422,86641.0,86640.0,0.00039508]
[1763948835933,0.06204389,86641.0,86640.0,0.00039508]
[1763948836132,0.38504389,86641.0,86640.0,0.00039508]
[1763948837682,0.06204389,86641.0,86640.0,0.00039508]
[1763948838115,0.03554389,86641.0,86640.0,0.00175802]
[1763948838319,2.38504389,86641.0,86640.0,0.00175802]
[1763948838974,0.35854389,86641.0,86640.0,0.00175802]
[1763948842271,0.38504389,86641.0,86640.0,0.00175802]
[1763948842495,2.63733112,86641.0,86640.0,0.00175802]
[1763948842904,2.63733112,86641.0,86640.0,0.00375802]
[1763948843708,2.40649353,86641.0,86640.0,0.00275802]
[1763948844426,2.40648952,86641.0,86640.0,0.00275802]
[1763948844664,2.40648952,86641.0,86640.0,0.00175802]
[1763948846932,0.40648952,86641.0,86640.0,0.00175802]
[1763948847140,0.03926952,86641.0,86640.0,0.01154613]
[1763948847343,0.03554389,86641.0,86640.0,0.01154613]
[1763948847494,0.03554389,86641.0,86640.0,0.00175802]
[1763948847916,0.01782389,86641.0,86640.0,0.00175802]
[1763948848115,0.01381,86643.0,86640.0,0.00275802]
[1763948848323,0.03178646,86643.0,86640.0,0.00139508]
[1763948848531,0.02147086,86642.0,86640.0,0.00239508]
[1763948848732,0.01797646,86643.0,86640.0,0.00239508]
[1763948848910,0.02147121,86642.0,86640.0,0.00139508]
[1763948849276,0.02147696,86641.0,86640.0,0.01018319]
[1763948849407,0.49487422,86650.0,86640.0,0.01118319]
[1763948849609,0.70563065,86650.0,86647.0,0.00978811]
[1763948849812,0.0265,86651.0,86647.0,0.00978811]
[1763948850014,0.01772,86648.0,86647.0,0.00978811]
[1763948850413,0.04422,86648.0,86644.0,0.00978811]
[1763948850614,0.03153,86641.0,86640.0,0.00139508]
[1763948850931,0.47264186,86641.0,86640.0,0.00239508]
[1763948851130,0.30960992,86641.0,86640.0,0.00139508]
[1763948851332,0.30960992,86641.0,86640.0,0.01118319]
[1763948851582,0.35382992,86641.0,86640.0,0.00139508]
[1763948851790,0.35382992,86641.0,86640.0,0.00039508]
[1763948852012,0.30960992,86641.0,86640.0,0.00039508]
[1763948852341,0.32732992,86641.0,86640.0,0.00039508]
[1763948852545,2.35382992,86641.0,86640.0,0.00039508]
[1763948854078,0.04422,86641.0,86640.0,0.00039508]
[1763948854506,2.0,86649.0,86640.0,0.01635876]
[1763948854691,2.0,86649.0,86643.0,0.00978811]
[1763948855043,2.0,86649.0,86648.0,0.00110926]
[1763948855509,2.04621,86649.0,86648.0,0.00110926]
[1763948856956,2.0,86649.0,86648.0,0.00110926]
[1763948857303,0.01823459,86650.0,86649.0,0.00978811]
[1763948857630,0.01381,86652.0,86650.0,0.00978811]
[1763948857869,0.01381,86652.0,86640.0,0.01499582]
[1763948858071,0.01381,86652.0,86648.0,0.001]
[1763948858285,0.01381,86652.0,86648.0,0.002]
[1763948858628,0.01381,86652.0,86647.0,0.00978811]
[1763948858915,0.01854,86648.0,86640.0,0.01499582]
[1763948859112,0.34154,86641.0,86640.0,0.00539507]
[1763948859314,0.35528,86641.0,86640.0,0.00539507]
[1763948859694,0.35528,86641.0,86640.0,0.00039508]
[1763948860504,0.38295,86641.0,86640.0,0.00039508]
[1763948860877,0.35528,86641.0,86640.0,0.00039508]
[1763948861077,0.33674,86641.0,86640.0,0.00039508]
[1763948861489,0.35832973,86641.0,86640.0,0.00039508]
[1763948861877,0.02158973,86641.0,86640.0,0.01018319]
[1763948862075,0.02158973,86641.0,86640.0,0.01118319]
[1763948862518,0.02158973,86641.0,86640.0,0.01018319]
[1763948862866,0.06779973,86641.0,86640.0,0.00139508]
[1763948863238,0.02158973,86641.0,86640.0,0.00275802]
[1763948863650,0.02158973,86641.0,86640.0,0.00375802]
[1763948863840,0.04012973,86641.0,86640.0,0.00375802]
[1763948864054,0.06779973,86641.0,86640.0,0.00375802]
[1763948865576,0.02158973,86641.0,86640.0,0.00375802]
[1763948865779,0.02158973,86641.0,86640.0,0.01354613]
[1763948866315,0.02158973,86641.0,86640.0,0.03197613]
[1763948866519,0.02158973,86641.0,86640.0,0.05826613]
[1763948868074,0.34125048,86652.0,86640.0,0.05826613]
[1763948868075,0.01825048,86652.0,86640.0,0.05826613]
[1763948868279,0.08720886,86672.0,86640.0,0.05826613]
[1763948868280,2.0,86669.0,86668.0,0.00978811]
[1763948868480,0.02160704,86669.0,86668.0,0.00978811]
[1763948868692,0.08540963,86669.0,86660.0,0.01460074]
[1763948868865,0.01861,86667.0,86660.0,0.01460074]
[1763948869064,0.02160704,86666.0,86661.0,0.00978811]
[1763948869267,0.02160704,86666.0,86660.0,0.01460074]
[1763948869409,0.02167978,86666.0,86660.0,0.01460074]
[1763948869613,0.02160704,86665.0,86660.0,0.01460074]
[1763948869810,0.02160704,86664.0,86660.0,0.01460074]
[1763948870018,0.02160704,86663.0,86660.0,0.00960075]
[1763948870219,0.02160704,86662.0,86660.0,0.00960075]
[1763948870498,0.02160704,86661.0,86660.0,0.01060075]
[1763948870912,0.02160704,86661.0,86660.0,0.01160075]
[1763948871156,0.02160704,86661.0,86660.0,0.01060075]
[1763948871873,0.02160704,86661.0,86660.0,0.00960075]
[1763948872282,7.274e-05,86666.0,86660.0,0.00960075]
[1763948872501,0.02158234,86665.0,86660.0,0.00960075]
[1763948872707,0.02158234,86664.0,86660.0,0.01060075]
[1763948872831,0.02158234,86663.0,86660.0,0.01060075]
[1763948873027,7.274e-05,86666.0,86660.0,0.01660074]
[1763948873227,0.02158188,86665.0,86660.0,0.01460074]
[1763948873429,0.01861,86661.0,86660.0,0.001]
[1763948873636,7.274e-05,86666.0,86664.0,0.01843]
[1763948873876,7.274e-05,86666.0,86665.0,0.02821811]
[1763948874079,7.274e-05,86666.0,86665.0,0.00978811]
[1763948874230,7.274e-05,86666.0,86665.0,0.02821811]
[1763948874865,2.323,86665.0,86664.0,0.001]
[1763948875066,2.34457521,86665.0,86664.0,0.001]
[1763948875264,0.34457521,86665.0,86664.0,0.001]
[1763948875471,0.323,86665.0,86664.0,0.001]
[1763948875916,0.01861,86665.0,86664.0,0.001]
[1763948876159,0.04545,86665.0,86661.0,0.00978811]
[1763948876366,0.01861,86661.0,86650.0,0.00960075]
[1763948876570,0.70563065,86660.0,86650.0,0.00960075]
[1763948876795,0.70563065,86660.0,86652.0,0.00978811]
[1763948877004,0.70563065,86660.0,86650.0,0.01460074]
[1763948877005,0.70563065,86660.0,86656.0,0.00978811]
[1763948879064,0.0139,86657.0,86656.0,0.00978811]
[1763948879588,0.0139,86657.0,86656.0,0.01064375]
[1763948880172,0.0139,86657.0,86656.0,0.01164375]
[1763948880344,0.03251,86657.0,86656.0,0.01264375]
[1763948880556,0.323,86659.0,86656.0,0.01264375]
[1763948880759,7.274e-05,86666.0,86658.0,0.01843]
[1763948880960,7.274e-05,86666.0,86665.0,0.03980811]
[1763948881139,7.274e-05,86666.0,86665.0,0.04037848]
[1763948881340,7.274e-05,86666.0,86665.0,0.06666848]
[1763948883007,7.274e-05,86666.0,86665.0,0.06866848]
[1763948884783,7.274e-05,86666.0,86665.0,0.00257037]
[1763948885558,7.274e-05,86666.0,86665.0,0.00157037]
[1763948885761,7.274e-05,86666.0,86665.0,0.00057037]
[1763948887209,7.274e-05,86666.0,86665.0,0.01035848]
[1763948889357,7.274e-05,86666.0,86665.0,0.05569848]
[1763948889716,7.274e-05,86666.0,86665.0,0.02840848]
[1763948890117,7.274e-05,86666.0,86665.0,0.01035848]
[1763948890960,7.274e-05,86666.0,86665.0,0.02840848]
[1763948891873,7.274e-05,86666.0,86665.0,0.01035848]
[1763948892465,7.274e-05,86666.0,86665.0,0.01862037]
[1763948892678,7.274e-05,86666.0,86665.0,0.01035848]
[1763948893091,0.04373274,86666.0,86665.0,0.00057037]
[1763948893988,0.01714274,86666.0,86665.0,0.00057037]
[1763948894983,0.04373274,86666.0,86665.0,0.00057037]
[1763948896774,0.01714274,86666.0,86665.0,0.00057037]
[1763948896976,0.01714274,86666.0,86665.0,0.01035848]
[1763948897199,0.04373274,86666.0,86665.0,0.01035848]
[1763948897866,0.01714274,86666.0,86665.0,0.01035848]
[1763948898442,0.04373274,86666.0,86665.0,0.01035848]
[1763948898769,0.04373274,86666.0,86665.0,0.00057037]
[1763948899123,0.01714274,86666.0,86665.0,0.00057037]
[1763948899324,0.04373274,86666.0,86665.0,0.00057037]
[1763948900758,7.274e-05,86666.0,86665.0,0.03282848]
[1763948900976,7.274e-05,86666.0,86665.0,0.01477848]
[1763948901626,0.01714274,86666.0,86665.0,0.01035848]
[1763948901865,0.04373274,86666.0,86665.0,0.00057037]
[1763948902281,7.274e-05,86666.0,86665.0,0.02840848]
[1763948902840,7.274e-05,86666.0,86665.0,0.01035848]
[1763948903241,0.04373274,86666.0,86665.0,0.00057037]
[1763948904239,7.274e-05,86666.0,86665.0,0.00057037]
[1763948904642,7.274e-05,86666.0,86665.0,0.01035848]
[1763948905345,7.274e-05,86666.0,86665.0,0.00057037]
[1763948905542,7.274e-05,86666.0,86665.0,0.01035848]
[1763948906177,7.274e-05,86666.0,86665.0,0.00057037]
[1763948906821,7.274e-05,86666.0,86665.0,0.01035848]
[1763948910932,7.274e-05,86666.0,86665.0,0.00057037]
[1763948910933,0.04373274,86666.0,86665.0,0.00057037]
[1763948911947,0.01714274,86666.0,86665.0,0.00057037]
[1763948912149,7.274e-05,86666.0,86665.0,0.01035848]
[1763948914703,7.274e-05,86666.0,86665.0,0.05452848]
[1763948916139,0.04293274,86666.0,86665.0,0.00057037]
[1763948916503,0.36593274,86666.0,86665.0,0.00057037]
[1763948917834,0.34011274,86666.0,86665.0,0.00057037]
[1763948918046,0.59670374,86666.0,86665.0,0.00057037]
[1763948918747,0.61829568,86666.0,86665.0,0.00057037]
[1763948919624,2.61829568,86666.0,86665.0,0.00057037]
[1763948920422,2.61929568,86666.0,86665.0,0.00057037]
[1763948926777,2.61829568,86666.0,86665.0,0.00057037]
[1763948927001,2.61929568,86666.0,86665.0,0.00057037]
[1763948927659,2.38852468,86666.0,86665.0,0.00057037]
[1763948927876,0.00107274,86666.0,86665.0,0.00057037]
[1763948928290,0.00107274,86666.0,86665.0,0.02614848]
[1763948928649,0.00107274,86666.0,86665.0,0.05223848]
[1763948929069,0.00107274,86666.0,86665.0,0.01035848]
[1763948929372,7.274e-05,86666.0,86665.0,0.01035848]
[1763948929736,0.00107274,86666.0,86665.0,0.01035848]
[1763948929930,7.274e-05,86666.0,86665.0,0.01035848]
[1763948930322,0.18833246,86674.0,86665.0,0.00057037]
[1763948930522,0.23072901,86682.0,86670.0,0.00960075]
[1763948930769,0.23072901,86682.0,86673.0,0.00031684]
[1763948931057,0.2422848,86675.0,86670.0,0.01460074]
[1763948931389,0.01703,86671.0,86670.0,0.00499999]
[1763948931804,0.230771,86666.0,86665.0,0.00039508]
[1763948931988,2.36591286,86666.0,86665.0,0.00039508]
[1763948932193,2.39088286,86666.0,86665.0,0.00039508]
[1763948932434,2.71388286,86666.0,86665.0,0.00039508]
[1763948934527,2.48311186,86666.0,86665.0,0.00039508]
[1763948934868,2.45814186,86666.0,86665.0,0.00039508]
[1763948935071,2.48311186,86666.0,86665.0,0.00039508]
[1763948935421,2.71388286,86666.0,86665.0,0.00039508]
[1763948936626,2.48311186,86666.0,86665.0,0.00039508]
[1763948937091,0.48311186,86666.0,86665.0,0.00096545]
[1763948937356,0.323,86666.0,86665.0,0.04284545]
[1763948937560,0.01284,86691.0,86680.0,0.01460074]
[1763948937780,0.11811186,86688.0,86684.0,0.00978811]
[1763948937949,2.0,86689.0,86684.0,0.00978811]
[1763948938576,2.0,86689.0,86684.0,0.03587811]
[1763948938776,2.0,86689.0,86684.0,0.00978811]
[1763948938921,2.0,86693.0,86684.0,0.00978811]
[1763948939119,2.0,86688.0,86684.0,0.01078811]
[1763948939574,2.0,86688.0,86684.0,0.01178811]
[1763948939777,2.0,86688.0,86684.0,0.001]
[1763948940377,0.323,86687.0,86684.0,0.001]
[1763948940734,0.323,86687.0,86683.0,0.00978811]
[1763948941159,0.323,86687.0,86686.0,0.01579]
[1763948941367,0.01658839,86697.0,86689.0,0.00978811]
[1763948941583,0.01658839,86697.0,86692.0,0.03807811]
[1763948942016,0.01658839,86697.0,86696.0,0.00978811]
[1763948942220,0.01810407,86706.0,86705.0,0.00978811]
[1763948942602,0.01810407,86706.0,86705.0,0.05166811]
[1763948942806,0.03509494,86706.0,86705.0,0.02557811]
[1763948943220,0.03509494,86706.0,86705.0,0.05166811]
[1763948943583,0.01699087,86706.0,86705.0,0.05166811]
[1763948943786,0.01699087,86706.0,86705.0,0.05266811]
[1763948944191,0.01699087,86706.0,86705.0,0.05366811]
[1763948946183,0.00011837,86706.0,86705.0,0.05366811]
[1763948952264,0.00011837,86706.0,86705.0,0.06359713]
[1763948952821,0.00011837,86706.0,86705.0,0.06259713]
[1763948952982,0.00011837,86706.0,86705.0,0.06159713]
[1763948953185,0.00011837,86706.0,86705.0,0.06359713]
[1763948953421,0.00011837,86706.0,86705.0,0.06559713]
[1763948953739,0.00011837,86706.0,86705.0,0.06359713]
[1763948954117,0.00011837,86706.0,86705.0,0.05566811]
[1763948955686,0.00011837,86706.0,86705.0,0.05366811]
[1763948955928,0.00011837,86706.0,86705.0,0.05566811]
[1763948956450,0.00011837,86706.0,86705.0,0.05366811]
[1763948956650,0.00011837,86706.0,86705.0,0.05466811]